Cogmind - Beta 14 @@@ ROGUE MODE // 2024.10.21 @ 18:11:19 Player: canerib Result: Destroyed by Y-45 Defender with Beam Rifle Performance ------------- Evolutions (1) 500 Regions Visited (3) 600 Robots Destroyed (24) 120 Value Destroyed (692) 692 Prototype IDs (0) 0 Alien Tech Used (0) 0 Bonus (24) 24 TOTAL SCORE: 1936 Bonus ------- High Alert Combat Kills 24 Cogmind --------- Core Integrity 0/400 Matter 87/300 Energy 36/100 System Corruption 0% Temperature Cool (9) Movement Walking (120) Location -9/Materials Parts ------- > --- POWER (1) -------- (None) > --- PROPULSION (4) --- Aluminum Leg Aluminum Leg > --- UTILITY (2) ------ Small Storage Unit > --- WEAPON (2) ------- EM Shotgun > --- INVENTORY (8) ---- Mining Laser Peak State ------------ > --- POWER ------------ Light Ion Engine > --- PROPULSION ------- Aluminum Leg Aluminum Leg > --- UTILITY ---------- Small Storage Unit Improved Terrain Scanner > --- WEAPON ----------- Small Laser Small Laser > --- INVENTORY -------- Light Ion Engine Light Assault Rifle [Rating: 9] Favorites ----------- Power Light Ion Engine Engine Light Ion Engine Propulsion Aluminum Leg Leg Aluminum Leg Flight Unit Flight Unit Utility Small Storage Unit Device Improved Terrain Scanner Storage Small Storage Unit Processor Improved Targeting Computer Protection Medium Armor Plating Weapon Small Laser Energy Gun Small Laser Ballistic Gun Light Assault Rifle Ballistic Cannon Improved Light Cannon Launcher Rocket Launcher Build | -11 -10 -10 -9 ------- Run | Yrd Mat Min Mat Slots Evolved 2 | . . . 2 Power . | . . . . Propulsion 2 | . . . 2 Utility . | . . . . Weapon . | . . . . Parts Attached 31 | 8 8 5 10 Power 5 | 1 2 1 1 Engine 5 | 1 2 1 1 Core . | . . . . Reactor . | . . . . Propulsion 10 | 2 3 1 4 Treads . | . . . . Leg 5 | 2 1 . 2 Wheel . | . . . . Hover . | . . . . Flight 5 | . 2 1 2 Utility 5 | 2 1 . 2 Device 1 | 1 . . . Storage 2 | 1 . . 1 Processor 1 | . 1 . . Hackware . | . . . . Protection 1 | . . . 1 Artifact . | . . . . Weapon 11 | 3 2 3 3 Energy Gun 4 | 2 1 . 1 Energy Cannon . | . . . . Ballistic Gun 5 | 1 1 2 1 Ballistic Cannon 1 | . . . 1 Launcher 1 | . . 1 . Special Weapon . | . . . . Impact Weapon . | . . . . Slashing Weapon . | . . . . Piercing Weapon . | . . . . Special Melee Weapon . | . . . . Unidentified Prototypes . | . . . . Parts Lost 18 | . 6 2 10 Power 3 | . 1 . 2 Propulsion 6 | . 2 1 3 Utility 3 | . 1 . 2 Weapon 6 | . 2 1 3 Highest Loss Streak 5 | . 5 2 5 To Critical Strikes . | . . . . Average Slot Usage (%) 74 | . 91 78 36 Engine 9 | . 11 14 4 Leg 15 | . 21 3 7 Flight 6 | . 4 22 6 Device 3 | . 5 . . Storage 8 | . 12 . 3 Processor 8 | . 8 14 6 Energy Gun 11 | . 18 3 1 Ballistic Gun 6 | . 7 14 1 Peak Build Rating 9 | 9 9 8 8 Average Rating 6 | 5 8 6 4 On Entrance 6 | . 9 8 8 Naked Turns 4 | . . . 4 Heaviest Build 14 | 11 12 8 14 Greatest Support 20 | 20 20 10 20 Greatest Overweight (x) 3 | . 3 1 3 Average Overweight (x) . | . . . . Largest Inventory Capacity 8 | 8 8 5 8 Average Capacity 7 | 7 7 5 5 Most Carried 5 | 5 4 5 5 Average Carried 2 | 2 2 3 2 Final Capacity 8 | 8 5 5 8 Final Carried 4 | 2 3 4 1 Class Distribution -------------------- 94% | Mutant 5% | Scavenger-Mutant Dominant Class ---------------- Mutant | -10/Materials Scavenger-Mutant | -10/Mines Mutant | -9/Materials Resources | -11 -10 -10 -9 ----------- Run | Yrd Mat Min Mat Matter Collected 386 | 280 82 20 4 Remotely . | . . . . Salvage Created 622 | 34 329 69 190 Parts 40 | 5 13 6 16 Haulers Intercepted . | . . . . Recyclers Shooed 1 | 1 . . . Parts Field Recycled . | . . . . Retrieved Matter . | . . . . Parts Self-Destructed . | . . . . Prevented . | . . . . Kills | -11 -10 -10 -9 ------- Run | Yrd Mat Min Mat Combat Hostiles Destroyed 22 | . 9 4 9 Guns 14 | . 9 3 2 Cannons 7 | . . . 7 AOE 1 | . . 1 . Classes Destroyed 4 | 1 2 . 1 Tunneler 2 | 2 . . . Swarmer 8 | . 3 3 2 Grunt 13 | . 6 1 6 Duelist 1 | . . . 1 Best Kill Streak 7 | 1 3 3 7 Combat Bots Only 7 | . 3 3 7 Max Kills in Single Turn 1 | 1 1 1 1 Gunslinging . | . . . . Exploded 1 | . . 1 . Melee . | . . . . Uniques/NPCs Destroyed . | . . . . Combat | -11 -10 -10 -9 -------- Run | Yrd Mat Min Mat Hostile Shots Fired 227 | . 93 22 112 Missed 62 | . 17 4 41 Damage Taken 2176 | . 895 141 1140 Core 622 | . 178 34 410 Absorbed by Shields . | . . . . Regen/Repaired (Parts) 14 | . . . 14 Core Remaining (%) 57 | 100 . 15 . Volleys Fired 98 | 10 50 8 30 Largest 2 | 2 2 2 2 Hottest 80 | 80 80 76 53 Shots Fired 157 | 20 91 13 33 Gun 132 | 20 91 12 9 Cannon 21 | . . . 21 Launcher 4 | . . 1 3 Special . | . . . . Kinetic 62 | . 29 8 25 Thermal 86 | 20 62 4 . Explosive 4 | . . 1 3 Electromagnetic 5 | . . . 5 Robot Hit Streak 12 | 6 7 3 12 Robot Miss Streak 4 | 4 3 3 4 Penetration Max . | . . . . Secondary Targets 3 | . 3 . . Max Gunslinging Chain 1 | . 1 . . Shots Hit Robots 95 | 9 55 5 26 Core Hits 38 | 2 19 4 13 Critical Kills . | . . . . Critical Parts Destroyed 2 | . 1 1 . Critical Strikes 3 | . 2 1 . Burn 1 | . 1 . . Destroy 2 | . 1 1 . Melee Attacks . | . . . . Impact . | . . . . Slashing . | . . . . Piercing . | . . . . Sneak Attacks . | . . . . Combat Hostiles . | . . . . Follow-up Attacks . | . . . . Damage Inflicted 1530 | 106 599 141 684 Guns 863 | 106 599 86 72 Cannons 383 | . . . 383 Explosions 284 | . . 55 229 Melee . | . . . . Ramming . | . . . . Kinetic 611 | . 167 44 400 Thermal 580 | 106 432 42 . Explosive 284 | . . 55 229 Electromagnetic 55 | . . . 55 Impact . | . . . . Slashing . | . . . . Piercing . | . . . . Highest Corruption . | . . . . Average Corruption . | . . . . Corruption Purged . | . . . . Corruption Blocked . | . . . . Overload Shots . | . . . . Overflow Damage . | . . . . Projectiles . | . . . . Explosions . | . . . . Melee . | . . . . Knockbacks 4 | . . . 4 Impact . | . . . . Kinetic 4 | . . . 4 Secondary . | . . . . Self-Inflicted Damage 65 | . . . 65 Shots 2 | . . . 2 Rammed . | . . . . Targets Rammed . | . . . . Kicked . | . . . . Crushed . | . . . . Highest Temperature 302 | 108 302 88 70 Average Temperature 83 | 41 106 34 37 Received Heat Transfer 756 | . 465 . 291 Effects 1 | . 1 . . Energy Bleed 1 | . 1 . . Siege Activations . | . . . . Robots Corrupted . | . . . . Combat Hostiles . | . . . . Parts Fried . | . . . . Impact Corruptions . | . . . . Robots Melted . | . . . . Combat Hostiles . | . . . . Parts Melted . | . . . . Heat Transferred 1443 | 250 1082 111 . Parts Sabotaged . | . . . . Parts Stolen . | . . . . Parts Stripped . | . . . . Power Chain Reactions . | . . . . Alert | -11 -10 -10 -9 ------- Run | Yrd Mat Min Mat Peak Influence 467 | 10 226 159 467 Initial 61 | . 6 16 61 Average 121 | 4 104 95 248 Maximum Alert Level 2 | . 1 . 2 Low Security (%) 75 | 100 77 100 45 Level 1 19 | . 22 . 32 Level 2 5 | . . . 22 Level 3 . | . . . . Level 4 . | . . . . Level 5 . | . . . . High Security . | . . . . Max Security . | . . . . Squads Dispatched 3 | . 1 1 1 Investigation 1 | . . 1 . Extermination . | . . . . Reinforcement 2 | . 1 . 1 Assault . | . . . . Garrison . | . . . . Intercept . | . . . . Searches Triggered . | . . . . Construction Impeded . | . . . . Haulers Reinforced . | . . . . Active Scanning Responses . | . . . . Cargo Convoy Interrupts . | . . . . Stealth | -11 -10 -10 -9 --------- Run | Yrd Mat Min Mat Distress Signals 3 | . 1 . 2 Communications Jammed . | . . . . Distress Signals . | . . . . Times Spotted 46 | . 17 3 26 Peak Tracking Total 13 | . 4 3 13 Tactical Retreats 5 | . 1 . 4 Traps | -11 -10 -10 -9 ------- Run | Yrd Mat Min Mat Traps Triggered . | . . . . Indirectly . | . . . . Trap Hack Attempts . | . . . . Triggered . | . . . . Disarmed . | . . . . Reprogrammed . | . . . . Reused . | . . . . Traps Extracted . | . . . . Installed . | . . . . Triggered . | . . . . Machines | -11 -10 -10 -9 ---------- Run | Yrd Mat Min Mat Machines Disabled 1 | . . . 1 Max in Single Turn 1 | . . . 1 Machines Repaired . | . . . . Machines Dismantled . | . . . . Machines Sabotaged 1 | . . 1 . Overloaded Fab Kills . | . . . . Hacking | -11 -10 -10 -9 --------- Run | Yrd Mat Min Mat Machines Accessed 5 | . 3 1 1 Terminals 4 | . 3 1 . Fabricators . | . . . . Repair Stations 1 | . . . 1 Recycling Units . | . . . . Scanalyzers . | . . . . Garrison Access . | . . . . Total Hacks 9 | . 5 2 2 Successful 4 | . . 2 2 Failed 5 | . 5 . . Catastrophic 1 | . 1 . . Database Lockouts . | . . . . Manual 4 | . 3 1 . Terminals 7 | . 5 2 . Fabricators . | . . . . Repair Stations 2 | . . . 2 Recycling Units . | . . . . Scanalyzers . | . . . . Garrison Access . | . . . . Terminal Hacks 1 | . . 1 . Record 1 | . . 1 . Fabricator Hacks . | . . . . Repair Station Hacks 2 | . . . 2 Scan Component 1 | . . . 1 Repair 1 | . . . 1 Recycling Unit Hacks . | . . . . Scanalyzer . | . . . . Garrison Access Hacks . | . . . . Unauthorized Hacks 1 | . . 1 . Terminals 1 | . . 1 . Sabotage 1 | . . 1 . Fabricators . | . . . . Repair Stations . | . . . . Recycling Units . | . . . . Scanalyzers . | . . . . Garrison Access . | . . . . Data Cores Recovered . | . . . . Used . | . . . . Hacking Detections 3 | . 2 . 1 Full Trace Events . | . . . . Feedback Events . | . . . . Feedback Blocked . | . . . . Robot Schematics Acquired . | . . . . Robots Built . | . . . . Authchips . | . . . . Time . | . . . . Total Robot Build Rating . | . . . . Part Schematics Acquired . | . . . . Parts Built . | . . . . Authchips . | . . . . Time . | . . . . Total Part Build Rating . | . . . . Parts Repaired 1 | . . . 1 Time 26 | . . . 26 Parts Recycled . | . . . . Recycled Matter . | . . . . Retrieved Matter . | . . . . Retrieved Components . | . . . . Parts Scanalyzed . | . . . . Part Schematics Acquired . | . . . . Parts Damaged . | . . . . Bothacking | -11 -10 -10 -9 ------------ Run | Yrd Mat Min Mat Used RIF Installer . | . . . . Robots Hacked . | . . . . Non-combat . | . . . . Combat . | . . . . Robot Hacks Applied . | . . . . Relay Couplers Released . | . . . . Fabnet Peak Effective % . | . . . . Robots Rewired . | . . . . Allies Hacked . | . . . . Hacks Repelled . | . . . . Allies | -11 -10 -10 -9 -------- Run | Yrd Mat Min Mat Total Allies . | . . . . Largest Group . | . . . . Highest-Rated Group . | . . . . Highest-Rated Ally . | . . . . Total Orders . | . . . . Ally Attacks . | . . . . Total Damage . | . . . . Kills . | . . . . Allies Corrupted . | . . . . Allies Melted . | . . . . Intel | -11 -10 -10 -9 ------- Run | Yrd Mat Min Mat Robot Analysis Total . | . . . . Derelict Logs Recovered . | . . . . Drone Launches . | . . . . Drone Recoveries . | . . . . Exploration | -11 -10 -10 -9 ------------- Run | Yrd Mat Min Mat Turns Passed 900 | 142 473 74 211 Spaces Moved 568 | 93 217 103 155 Core 67 | 24 38 3 2 Treads . | . . . . Legs 299 | 69 179 3 48 Wheels . | . . . . Hover . | . . . . Flight 202 | . . 97 105 Fastest Speed 37 | 50 120 37 37 Average Speed 94 | 101 136 42 67 Slowest Speed 280 | 120 200 120 280 Overloaded Moves . | . . . . Propulsion Burnouts . | . . . . Robots Hopped 7 | . . . 7 Cave-ins Triggered . | . . . . Exploration Rate (%) 17 | 6 27 19 19 Regions Visited 3 Branch Regions 1 Pre-discovered Areas . | . . . . Known Exits Taken . | . . . . Unknown Exits Taken 3 | 1 1 1 . Scrap Searched . | . . . . Spaces Dug . | . . . . Terrain Destroyed 28 | . . 13 15 Melee . | . . . . Projectile . | . . . . AOE 28 | . . 13 15 Terrain Rammed . | . . . . Walls Destroyed . | . . . . Machines Disabled . | . . . . Actions | -11 -10 -10 -9 --------- Run | Yrd Mat Min Mat Total 770 | 119 309 120 222 Wait 50 | . 23 . 27 Move 551 | 92 216 102 141 Hop 7 | . . . 7 Pick Up 29 | 9 9 4 7 Fast Attach . | . . . . Attach 25 | 7 6 2 10 Detach . | . . . . Swap 6 | 1 2 3 . Drop 4 | . 3 1 . Fire 98 | 10 50 8 30 Melee . | . . . . Ram . | . . . . Kick . | . . . . Crush . | . . . . Escape Stasis . | . . . . Rewire . | . . . . Trap . | . . . . Miscellaneous . | . . . . Route ------- -11/Scrapyard -10/Materials -10/Mines -9/Materials History --------- Turn | Location | Event 6 | -11/Scrapyard | Discovered new exit (range 13) 143 | -11/Scrapyard | Entered Materials 308 | -10/Materials | Build established: Mutant 350 | -10/Materials | Core integrity fell below 50% 382 | -10/Materials | Lost 5 parts (1p1n1u2w) 572 | -10/Materials | Discovered new exit (range 12) 616 | -10/Materials | Entered Mines 631 | -10/Mines | Core integrity fell below 20% 661 | -10/Mines | Received a Rocket Launcher from a helpful Derelict 678 | -10/Mines | Discovered new exit (range 14) 680 | -10/Mines | A weapon hastily lodged in a ceiling crevice suddenly fell to the ground 690 | -10/Mines | Entered Materials 690 | -9/Materials | Evolved 2 slots: Propulsion x2 744 | -9/Materials | Repaired Flight Unit 796 | -9/Materials | Lost 5 parts (1p2n2w) 818 | -9/Materials | Core integrity fell below 50% 836 | -9/Materials | Core integrity fell below 20% 843 | -9/Materials | Destroyed 7 combat bots 856 | -9/Materials | Lost 5 parts (1p1n2u1w) 901 | -9/Materials | Destroyed by Y-45 Defender with Beam Rifle Last Messages --------------- 00813_ Lgt. Ion Engine destroyed. 00815_ Imp. Targeting Computer destroyed. 00819_ Critical hit (Burn: +37). 00821_ K-01 Serf collects debris. 00822_ G-47 Trooper destroyed. 00822_ Med. Armor Plating destroyed. 00824_ K-01 Serf collects debris. 00825_ Imp. Light Cannon destroyed. 00825_ Flight Unit destroyed. 00826_ Acquired Aluminum Leg. 00829_ K-01 Serf collects debris. 00841_ Acquired 4 matter. 00842_ K-01 Serf collects debris. 00888_ Acquired EM Shotgun. 00894_ L-31 Rogue destroyed. 00894_ Door malfunctions. 00895_ K-01 Serf cleans the Terminal. 00897_ K-01 Serf collects debris. 00898_ S-10 Pest destroyed. 00900_ K-01 Serf collects debris. Map ----- +----------------------------------------------------+ | ?????????????????????????????????????????????????? | | ?????????????????????????????????????????????????? | | ?????????????????????????????????????????????????? | | ?????????????????????????????????????????????????? | | ?????????????????????????????????????????????????? | | ?????????????????????????????????????????????????? | | ?????????????????????????????????????????????????? | | ?????????????????????????????????????????????????? | | ?????????????????????????????????????????????????? | | ?????????????????????????????????????????????????? | | ??????????????????????? ???????????????????????? | | ??????????????????????# ???????????????????????? | | ??????????????????????# #??????????????????????? | | ??????????????????????# #??????????????????????? | | ??????????????????????# #??????????????????????? | | ??????????????????????# +??????????????????????? | | ??????????????????????+ #??????????????????????? | | ??????????????????????# #??????????????????????? | | ?????????????????????## a##?????????# ??????????? | | ?????????????????????# ########## ??????????? | | ?????????????????????# k T ??????????? | | ?????????????????????# a Y ?????????? | | #########????????????# ???????????? | | #????????????# % ! #?????????????? | | """ ###############u [[^ """ w#?????????????? | | "T" ## # @[! """ +?????????????? | | ## """ / % !k """ #?????????????? | | ## """ "T" # #?????????????? | | """ ##] """ """ # kk s #?????????????? | | """ ## ######+#+# #?????????????? | | """ ############+##?# # #?????????????? | | #?????????## #### ! # #?????????????? | | #+################# # ![ # #?????????????? | | # !! # #?????????????? | | #= !! # #?????????????? | | # # ##########????? | | ##########+######## ######## ?? | | ?????# #??#######???#%%[ ####???????? | | ?????# """#??????????###/####### #??????????? | | ?????# R"#??????????#%%%% =#??? #??????????? | | ?????# ! """############*%!= *#????#??????????? | | ?????# + + %!!! #???????????????? | | ?????# """ ############ ! #???????????????? | | ?????# """ #??????????# !! #???????????????? | | ?????# """ #??????????# #???????????????? | | ?????###########??????????########???????????????? | | ?????????????????????????????????????????????????? | | ?????????????????????????????????????????????????? | | ?????????????????????????????????????????????????? | | ?????????????????????????????????????????????????? | +----------------------------------------------------+ Best States ------------- Heat Dissipation 28 Energy Generation 10 Energy Capacity 125 Matter Stores 300 Matter Capacity 300 Sight Range 16 Terrain Scan Range 16 Terrain Scan Density 10 Armor Coverage 225 Evasion (%) 62 Targeting Accuracy 6 Item Schematics ----------------- None Robot Schematics ------------------ None Fabricated ------------ Nothing Alien Tech Used ----------------- None Achievements -------------- Brute Force Challenges ------------ None Game ------ Seed TransmissionResetHammer Manual? 0 Play Time 00:16:48 Cumulative 24.7 hours Start 2024.10.21 @ 17:58:23 End 2024.10.21 @ 18:11:19 Sessions 1 Manual Loads 0 Difficulty Rogue Special Mode None Game No. 38 Rogue 38 Adventurer 0 Explorer 0 Win Type - Total 0 Types 0/0/0/0/0/0/0/0/0 Lore% 15 Gallery% 26 Achievement% 25 Wizard Run 0 Options --------- Layout 1 ASCII 1 Keyboard 0 Movement Mouse Keybinds 0 Fullscreen 1 Font 24/Smallcaps Map View 50x35 Zoom Use 0% Tactical HUD 1 Map Filters NONE Filters NONE Steam 1 RUN: 0b2b7d5e-8ae7-4c90-85e3-123cef6d015e